fUST/lending_fUST_20250720
["ID","MTS","AMOUNT","RATE_DAILY","PERIOD"]
[373315880,1752942648320,-1464.84,0.00020568,2]
[373315881,1752942648330,-654.61,0.00020568,2]
[373315882,1752942648340,-528.5,0.00020568,2]
[373315883,1752942648350,-215.11218928,0.00020568,2]
[373315884,1752942648361,-923.15,0.00020568,2]
[373315885,1752942648373,-151.0,0.000206,4]
[373315886,1752942648383,-5069.63212,0.00020624,3]
[373315887,1752942648393,-214.52603969,0.00020659,3]
[373315888,1752942648403,-634.86,0.00020667,2]
[373315889,1752942648413,-601.19,0.00020667,2]
[373315890,1752942648423,-460.0,0.00020667,2]
[373315891,1752942648432,-700.75,0.00020668,2]
[373315892,1752942648443,-460.0,0.00020668,2]
[373315893,1752942648452,-519.0,0.00020669,2]
[373315894,1752942648462,-200.0,0.00020738,2]
[373315895,1752942648472,-151.0,0.00020739,2]
[373315896,1752942648482,-151.0,0.00020739,2]
[373315897,1752942648492,-151.0,0.00020739,2]
[373315898,1752942648502,-151.0,0.00020739,2]
[373315899,1752942648512,-703.708869,0.00020739,2]
[373315900,1752942648522,-151.0,0.00020739,2]
[373315901,1752942648532,-151.0,0.00020739,2]
[373315902,1752942648541,-151.0,0.00020739,2]
[373315903,1752942648551,-151.0,0.00020739,2]
[373315904,1752942648561,-215.175957,0.00020739,2]
[373315905,1752942648572,-165.444064,0.00020739,2]
[373315906,1752942648582,-165.444064,0.00020739,2]
[373315907,1752942648591,-151.0,0.00020739,2]
[373315908,1752942648601,-151.0,0.00020739,2]
[373315909,1752942648611,-381.717433,0.00020739,2]
[373315910,1752942648621,-381.717433,0.00020739,2]
[373315911,1752942648631,-151.0,0.00020739,2]
[373315912,1752942648641,-547.894044,0.00020739,2]
[373315913,1752942648650,-547.894044,0.00020739,2]
[373315914,1752942648660,-19397.79400263,0.00020739,2]
[373315915,1752942648670,-162.17756,0.00020762,3]
[373315916,1752942648680,-612.0,0.00020786,2]
[373315917,1752942648690,-1029.303,0.00020788,2]
[373315918,1752942648700,-612.0,0.00020798,2]
[373315919,1752942648710,-460.0,0.00020842,2]
[373315920,1752942648721,-1464.84,0.00020842,2]
[373315921,1752942648730,-654.61,0.00020842,2]
[373315922,1752942648740,-528.5,0.00020842,2]
[373315923,1752942648750,-923.15,0.00020842,2]
[373315924,1752942648761,-612.0,0.00020892,2]
[373315925,1752942648770,-612.0,0.00020897,2]
[373315926,1752942648780,-162.17756,0.00020912,2]
[373315927,1752942648790,-612.0,0.00020918,2]
[373315928,1752942648800,-4000.0,0.00020927,4]
[373315929,1752942648810,-5069.63212,0.00020934,4]
[373315930,1752942648820,-634.86,0.00020941,2]
[373315931,1752942648830,-460.0,0.00020941,2]
[373315932,1752942648840,-700.75,0.00020942,2]
[373315933,1752942648849,-460.0,0.00020942,2]
[373315934,1752942648860,-519.0,0.00020943,2]
[373315935,1752942648869,-612.0,0.00020988,2]
[373315936,1752942648879,-318.80027408,0.00020999,2]
[373315937,1752942648889,-223.53791667,0.00020999,2]
[373315938,1752942648899,-151.536565,0.00020999,2]
[373315939,1752942648909,-151.0,0.00020999,2]
[373315940,1752942648919,-151.0,0.00020999,2]
[373315941,1752942648929,-152.159767,0.00020999,2]
[373315942,1752942648938,-151.0,0.00020999,2]
[373315943,1752942648948,-151.0,0.00020999,2]
[373315944,1752942648959,-151.0,0.00020999,2]
[373315945,1752942648968,-1000.0,0.00020999,3]
[373315946,1752942648978,-1000.0,0.00020999,9]
[373315947,1752942648988,-151.0,0.00020999,2]
[373315948,1752942648998,-339.187051,0.00020999,2]
[373315949,1752942649009,-339.187051,0.00020999,2]
[373315950,1752942649021,-167.917216,0.00020999,2]
[373315951,1752942649030,-151.0,0.00020999,2]
[373315952,1752942649040,-151.0,0.00020999,2]
[373315953,1752942649050,-151.0,0.00020999,2]
[373315954,1752942649060,-151.0,0.00020999,2]
[373315955,1752942649071,-703.708869,0.00020999,2]
[373315956,1752942649081,-703.708869,0.00020999,2]
[373315957,1752942649091,-151.0,0.00020999,2]
[373315958,1752942649100,-151.0,0.00020999,2]
[373315959,1752942649109,-151.0,0.00020999,2]
[373315960,1752942649119,-151.0,0.00020999,2]
[373315961,1752942649130,-165.444064,0.00020999,2]
[373315962,1752942649140,-165.444064,0.00020999,2]
[373315963,1752942649150,-151.0,0.00020999,2]
[373315964,1752942649160,-151.0,0.00020999,2]
[373315965,1752942649170,-381.717433,0.00020999,2]
[373315966,1752942649180,-381.717433,0.00020999,2]
[373315967,1752942649190,-547.894044,0.00020999,2]
[373315968,1752942649200,-547.894044,0.00020999,2]
[373315969,1752942649210,-1662.71,0.00021,2]
[373315970,1752942649220,-185190.70443502,0.00021,4]
[373315971,1752942649231,-151.0,0.00021,2]
[373315972,1752942649241,-151.0,0.00021,2]
[373315973,1752942649250,-266.842087,0.00021,2]
[373315974,1752942649260,-151.0,0.00021,2]
[373315975,1752942649270,-151.0,0.00021,2]
[373315976,1752942649391,-3145.224935,0.00021,2]
[373315977,1752942649401,-151.0,0.00021,2]
[373315978,1752942649411,-339.187051,0.00021,2]
[373315979,1752942649421,-339.187051,0.00021,2]
[373315980,1752942649430,-151.0,0.00021,2]
[373315981,1752942649440,-151.0,0.00021,2]
[373315982,1752942649450,-151.0,0.00021,2]
[373315983,1752942649460,-703.708869,0.00021,2]
[373315984,1752942649469,-703.708869,0.00021,2]
[373315985,1752942649479,-151.0,0.00021,2]
[373315986,1752942649488,-151.0,0.00021,2]
[373315987,1752942649497,-151.0,0.00021,2]
[373315988,1752942649507,-151.0,0.00021,2]
[373315989,1752942649517,-165.444064,0.00021,2]
[373315990,1752942649527,-165.444064,0.00021,2]
[373315991,1752942649537,-151.0,0.00021,2]
[373315992,1752942649548,-151.0,0.00021,2]
[373315993,1752942649557,-381.717433,0.00021,2]
[373315994,1752942649567,-381.717433,0.00021,2]
[373315995,1752942649577,-151.0,0.00021,2]
[373315996,1752942649587,-547.894044,0.00021,2]
[373315997,1752942649597,-547.894044,0.00021,2]
[373315998,1752942649607,-162.17756,0.00021,4]
[373315999,1752942649616,-150.999999,0.00021,2]
[373316000,1752942649625,-612.0,0.00021004,2]
[373316001,1752942649635,-612.0,0.00021006,2]
[373316002,1752942649644,-1500.0,0.00021068,2]
[373316003,1752942649655,-1500.0,0.00021068,2]
[373316004,1752942649664,-1500.0,0.00021068,2]
[373316005,1752942649673,-500.0,0.00021068,2]
[373316006,1752942649684,-1500.0,0.00021068,2]
[373316007,1752942649694,-504.31142319,0.00021068,2]
[373316008,1752942649703,-224.2,0.0002107,2]
[373316009,1752942649713,-612.0,0.00021078,2]
[373316010,1752942649723,-580.0,0.00021085,2]
[373316011,1752942649732,-612.0,0.00021102,2]
[373316012,1752942649742,-460.0,0.00021116,2]
[373316013,1752942649752,-1464.84,0.00021116,2]
[373316014,1752942649762,-654.61,0.00021116,2]
[373316015,1752942649771,-528.5,0.00021116,2]
[373316016,1752942649782,-923.15,0.00021116,2]
[373316017,1752942649791,-612.0,0.00021179,2]
[373316018,1752942649800,-612.0,0.00021209,2]
[373316019,1752942649810,-634.86,0.00021215,2]
[373316020,1752942649821,-460.0,0.00021215,2]
[373316021,1752942649830,-700.75,0.00021216,2]
[373316022,1752942649840,-460.0,0.00021216,2]
[373316023,1752942649850,-519.0,0.00021217,2]
[373316024,1752942649861,-612.0,0.0002122,2]
[373316025,1752942649871,-5069.63212,0.00021245,4]
[373316026,1752942649881,-612.0,0.0002132,2]
[373316027,1752942649891,-215.0738,0.0002132,2]
[373316028,1752942649900,-612.0,0.00021343,2]
[373316029,1752942649910,-612.0,0.00021347,2]
[373316030,1752942649920,-612.0,0.00021362,2]
[373316031,1752942649929,-612.0,0.00021374,2]
[373316032,1752942649940,-179.60390152,0.0002139,2]
[373316033,1752942649952,-1464.84,0.0002139,2]
[373316034,1752942649961,-654.61,0.0002139,2]
[373316035,1752942649973,-528.5,0.0002139,2]
[373316036,1752942649982,-923.15,0.0002139,2]
[373316037,1752942649992,-612.0,0.00021426,2]
[373316038,1752942650001,-612.0,0.00021429,2]
[373316039,1752942650012,-634.86,0.00021489,2]
[373316040,1752942650022,-460.0,0.00021489,2]
[373316041,1752942650033,-700.75,0.0002149,2]
[373316042,1752942650043,-546.7,0.0002149,2]
[373316043,1752942650052,-519.0,0.00021491,2]
[373316044,1752942650061,-612.0,0.00021491,2]
[373316045,1752942650072,-10315.58859926,0.000215,2]
[373316046,1752942650082,-5069.63212,0.00021555,5]
[373316047,1752942650091,-700.0,0.00021612,2]
[373316048,1752942650100,-2000.0,0.00021616,2]
[373316049,1752942650110,-1500.0,0.00021616,2]
[373316050,1752942650119,-2000.0,0.00021616,2]
[373316051,1752942650128,-162.17756,0.00021625,4]
[373316052,1752942650138,-500.0,0.00021641,2]
[373316053,1752942650148,-160.0,0.00021662,3]
[373316054,1752942650157,-1464.84,0.00021664,2]
[373316055,1752942650167,-654.61,0.00021664,2]
[373316056,1752942650176,-528.5,0.00021664,2]
[373316057,1752942650186,-923.15,0.00021664,2]
[373316059,1752942650195,-5539.0,0.00021675,2]
[373316060,1752942650205,-634.86,0.00021763,2]
[373316061,1752942650214,-460.0,0.00021763,2]
[373316062,1752942650223,-700.75,0.00021764,2]
[373316063,1752942650234,-519.0,0.00021765,2]
[373316064,1752942650244,-162.17756,0.00021794,3]
[373316065,1752942650254,-823.0,0.00021818,2]
[373316066,1752942650264,-1752.0,0.0002184,2]
[373316067,1752942650274,-1752.0,0.0002184,2]
[373316068,1752942650284,-1752.0,0.0002184,2]
[373316069,1752942650294,-1752.0,0.0002184,2]
[373316070,1752942650304,-1752.0,0.0002184,2]
[373316071,1752942650313,-1752.0,0.0002184,2]
[373316072,1752942650326,-1784.10004566,0.0002184,2]
[373316073,1752942650336,-339.187051,0.00021865,2]
[373316074,1752942650345,-339.187051,0.00021865,2]
[373316075,1752942650355,-5069.63212,0.00021866,6]
[373316076,1752942650367,-500.0,0.00021917,2]
[373316077,1752942650377,-500.0,0.00021917,2]
[373316078,1752942650387,-153.0,0.00021918,2]
[373316079,1752942650396,-153.0,0.00021918,2]
[373316080,1752942650406,-153.0,0.00021918,2]
[373316081,1752942650415,-153.0,0.00021918,2]
[373316082,1752942650424,-153.0,0.00021918,2]
[373316083,1752942650434,-153.0,0.00021918,2]
[373316084,1752942650444,-153.0,0.00021918,2]
[373316085,1752942650453,-153.0,0.00021918,2]
[373316086,1752942650463,-153.0,0.00021918,2]
[373316087,1752942650472,-153.0,0.00021918,2]
[373316088,1752942650481,-153.0,0.00021918,2]
[373316089,1752942650490,-153.0,0.00021918,2]
[373316090,1752942650500,-153.0,0.00021918,2]
[373316091,1752942650509,-153.0,0.00021918,2]
[373316092,1752942650519,-153.0,0.00021918,2]
[373316093,1752942650528,-153.0,0.00021918,2]
[373316094,1752942650538,-153.0,0.00021918,2]
[373316095,1752942650547,-153.0,0.00021918,2]
[373316096,1752942650556,-153.0,0.00021918,2]
[373316097,1752942650568,-153.0,0.00021918,2]
[373316098,1752942650578,-153.0,0.00021918,2]
[373316099,1752942650587,-153.0,0.00021918,2]
[373316100,1752942650596,-153.0,0.00021918,2]
[373316101,1752942650605,-153.0,0.00021918,2]
[373316102,1752942650615,-153.0,0.00021918,2]
[373316103,1752942650625,-153.0,0.00021918,2]
[373316104,1752942650634,-153.0,0.00021918,2]
[373316105,1752942650644,-153.0,0.00021918,2]
[373316106,1752942650654,-153.0,0.00021918,2]
[373316107,1752942650663,-153.0,0.00021918,2]
[373316108,1752942650672,-153.0,0.00021918,2]
[373316109,1752942650682,-153.0,0.00021918,2]
[373316110,1752942650691,-153.0,0.00021918,2]
[373316111,1752942650701,-153.0,0.00021918,2]
[373316112,1752942650710,-153.0,0.00021918,2]
[373316113,1752942650720,-153.0,0.00021918,2]
[373316114,1752942650729,-153.0,0.00021918,2]
[373316115,1752942650739,-153.0,0.00021918,2]
[373316116,1752942650748,-153.0,0.00021918,2]
[373316117,1752942650758,-153.0,0.00021918,2]
[373316118,1752942650767,-153.0,0.00021918,2]
[373316119,1752942650776,-153.0,0.00021918,2]
[373316120,1752942650786,-153.0,0.00021918,2]
[373316121,1752942650795,-153.0,0.00021918,2]
[373316122,1752942650804,-153.0,0.00021918,2]
[373316123,1752942650813,-153.0,0.00021918,2]
[373316124,1752942650828,-153.0,0.00021918,2]
[373316125,1752942650837,-153.0,0.00021918,2]
[373316126,1752942650847,-153.0,0.00021918,2]
[373316127,1752942650856,-153.0,0.00021918,2]
[373316128,1752942650866,-153.0,0.00021918,2]
[373316129,1752942650875,-153.0,0.00021918,2]
[373316130,1752942650884,-153.0,0.00021918,2]
[373316131,1752942650893,-153.0,0.00021918,2]
[373316132,1752942650903,-153.0,0.00021918,2]
[373316133,1752942650912,-153.0,0.00021918,2]
[373316134,1752942650921,-153.0,0.00021918,2]
[373316135,1752942650930,-153.0,0.00021918,2]
[373316136,1752942650939,-153.0,0.00021918,2]
[373316137,1752942650949,-153.0,0.00021918,2]
[373316138,1752942650958,-153.0,0.00021918,2]
[373316139,1752942650967,-153.0,0.00021918,2]
[373316140,1752942650976,-153.0,0.00021918,2]
[373316141,1752942650985,-153.0,0.00021918,2]
[373316142,1752942650994,-153.0,0.00021918,2]
[373316143,1752942651004,-153.0,0.00021918,2]
[373316144,1752942651014,-153.0,0.00021918,2]
[373316145,1752942651023,-153.0,0.00021918,2]
[373316146,1752942651033,-153.0,0.00021918,2]
[373316147,1752942651042,-153.0,0.00021918,2]
[373316148,1752942651051,-153.0,0.00021918,2]
[373316149,1752942651061,-153.0,0.00021918,2]
[373316150,1752942651071,-153.0,0.00021918,2]
[373316151,1752942651081,-153.0,0.00021918,2]
[373316152,1752942651090,-153.0,0.00021918,2]
[373316153,1752942651100,-153.0,0.00021918,2]
[373316154,1752942651109,-153.0,0.00021918,2]
[373316155,1752942651119,-153.0,0.00021918,2]
[373316156,1752942651128,-153.0,0.00021918,2]
[373316157,1752942651138,-153.0,0.00021918,2]
[373316158,1752942651147,-153.0,0.00021918,2]
[373316159,1752942651157,-153.0,0.00021918,2]
[373316160,1752942651166,-153.0,0.00021918,2]
[373316161,1752942651176,-153.0,0.00021918,2]
[373316162,1752942651185,-153.0,0.00021918,2]
[373316163,1752942651194,-153.0,0.00021918,2]
[373316164,1752942651203,-153.0,0.00021918,2]
[373316165,1752942651212,-153.0,0.00021918,2]
[373316166,1752942651222,-153.0,0.00021918,2]
[373316167,1752942651231,-153.0,0.00021918,2]
[373316168,1752942651240,-153.0,0.00021918,2]
[373316169,1752942651250,-153.0,0.00021918,2]
[373316170,1752942651259,-153.0,0.00021918,2]
[373316171,1752942651268,-153.0,0.00021918,2]
[373316172,1752942651278,-153.0,0.00021918,2]
[373316173,1752942651287,-153.0,0.00021918,2]
[373316174,1752942651296,-153.0,0.00021918,2]
[373316175,1752942651305,-153.0,0.00021918,2]
[373316176,1752942651315,-153.0,0.00021918,2]
[373316177,1752942651325,-153.0,0.00021918,2]
[373316178,1752942651335,-153.0,0.00021918,2]
[373316179,1752942651344,-153.0,0.00021918,2]
[373316180,1752942651353,-153.0,0.00021918,2]
[373316181,1752942651364,-153.0,0.00021918,2]
[373316182,1752942651374,-153.0,0.00021918,2]
[373316183,1752942651383,-153.0,0.00021918,2]
[373316184,1752942651392,-153.0,0.00021918,2]
[373316185,1752942651401,-153.0,0.00021918,2]
[373316186,1752942651412,-153.0,0.00021918,2]
[373316187,1752942651422,-151.0,0.00021918,2]
[373316188,1752942651431,-151.0,0.00021918,2]
[373316189,1752942651441,-151.0,0.00021918,2]
[373316190,1752942651450,-151.0,0.00021918,2]
[373316191,1752942651459,-151.0,0.00021918,2]
[373316192,1752942651468,-151.0,0.00021918,2]
[373316193,1752942651478,-151.0,0.00021918,2]
[373316194,1752942651487,-151.0,0.00021918,2]
[373316195,1752942651496,-151.0,0.00021918,2]
[373316196,1752942651505,-151.0,0.00021918,2]
[373316197,1752942651515,-252.530506,0.00021918,2]
[373316198,1752942651524,-150.0,0.00021918,2]
[373316199,1752942651534,-200.0,0.00021918,2]
[373316200,1752942651544,-150.0,0.00021918,2]
[373316201,1752942651553,-172.0,0.00021918,2]
[373316202,1752942651563,-172.0,0.00021918,2]
[373316203,1752942651574,-172.0,0.00021918,2]
[373316204,1752942651583,-172.0,0.00021918,2]
[373316205,1752942651592,-172.0,0.00021918,2]
[373316206,1752942651602,-173.95685811,0.00021918,2]
[373316207,1752942651612,-151.0,0.00021918,7]
[373316208,1752942651622,-151.0,0.00021918,7]
[373316209,1752942651633,-151.0,0.00021918,7]
[373316210,1752942651642,-151.0,0.00021918,7]
[373316211,1752942651652,-703.708869,0.00021918,7]
[373316212,1752942651663,-703.708869,0.00021918,7]
[373316213,1752942651674,-151.0,0.00021918,7]
[373316214,1752942651684,-151.0,0.00021918,7]
[373316215,1752942651695,-151.0,0.00021918,7]
[373316216,1752942651705,-165.444064,0.00021918,7]
[373316217,1752942651715,-165.444064,0.00021918,7]
[373316218,1752942651725,-238.210998,0.00021918,7]
[373316219,1752942651735,-151.0,0.00021918,7]
[373316220,1752942651746,-151.0,0.00021918,7]
[373316221,1752942651756,-381.717433,0.00021918,7]
[373316222,1752942651766,-381.717433,0.00021918,7]
[373316223,1752942651776,-547.894044,0.00021918,7]
[373316224,1752942651785,-547.894044,0.00021918,7]
[373316225,1752942651796,-1464.84,0.00021938,2]
[373316226,1752942651807,-654.61,0.00021938,2]
[373316227,1752942651817,-528.5,0.00021938,2]
[373316228,1752942651827,-923.15,0.00021938,2]
[373316229,1752942651837,-2063.36,0.00022,7]
[373316230,1752942651848,-10686.32,0.00022,7]
[373316231,1752942651858,-5947.87,0.00022,7]
[373316232,1752942651867,-162.17756,0.00022,14]
[373316233,1752942651877,-168.0,0.00022,2]
[373316234,1752942651892,-220.0,0.00022,2]
[373316235,1752942651911,-634.86,0.00022037,2]
[373316236,1752942651920,-460.0,0.00022037,2]
[373316237,1752942651928,-700.75,0.00022038,2]
[373316238,1752942651937,-519.0,0.00022038,2]
[373316239,1752942651954,-307.9988728,0.00022055,2]
[373316240,1752942651964,-151.0,0.00022164,7]
[373316241,1752942651974,-1000.0,0.00022164,2]
[373316242,1752942651984,-2006.81965426,0.00022164,2]
[373316243,1752942651993,-2854.23940573,0.00022176,6]
[373316244,1752942652079,-2215.39271427,0.00022176,6]
[373316245,1752942652090,-1000.0,0.00022189,2]
[373316246,1752942652100,-220.0,0.00022192,7]
[373316247,1752942652111,-151.0,0.00022193,7]
[373316248,1752942652121,-115.36930167,0.000222,2]
[373316249,1752942652133,-504.32018305,0.000222,2]
[373316250,1752942652144,-9747.88338338,0.000222,2]
[373316251,1752942652187,-460.0,0.00016732,2]
[373316252,1752942652197,-474.43433141,0.00017864,2]
[373316253,1752942652299,-6192.34701411,0.000222,2]
[373316254,1752942652455,-351.31,0.00016723,3]
[373316255,1752942652465,-460.0,0.00016731,2]
[373316256,1752942652475,-460.0,0.00016831,2]
[373316257,1752942652486,-270.36478622,0.00016831,2]
[373316258,1752942652506,-189.63521378,0.00016831,2]
[373316259,1752942652516,-184.871323,0.00016831,2]
[373316260,1752942652526,-460.0,0.00017005,2]
[373316261,1752942652536,-460.0,0.00017105,2]
[373316262,1752942652546,-460.0,0.00017105,2]
[373316263,1752942652555,-460.0,0.00017279,2]
[373316264,1752942652565,-537.33,0.00017379,2]
[373316265,1752942652576,-460.0,0.00017379,2]
[373316266,1752942652586,-460.0,0.00017553,2]
[373316267,1752942652595,-460.0,0.00017827,2]
[373316268,1752942652604,-357.87795701,0.00018101,2]
[373316269,1752942652716,-460.0,0.00016831,2]
[373316270,1752942652725,-80.60736584,0.00016831,2]
[373316271,1752942708875,400.856991,0.00013699,2]
[373316275,1752943201425,1680.0,0.0001652,2]
[373316277,1752943416653,200.0,0.00023,30]
[373316279,1752943751690,380.814141,0.00013699,2]
[373316391,1752943838389,-450.02941974,0.0001653,2]
[373316393,1752943838399,-442.44052863,0.00016532,2]
[373316395,1752943838409,-5154.57820528,0.00016533,2]
[373316397,1752943838418,-232.0,0.0001662,2]
[373316400,1752943838429,-1200.0,0.0001662,2]
[373316401,1752943838439,-298.63,0.00016621,3]
[373316403,1752943838449,-512.21,0.00016621,3]
[373316405,1752943838458,-256.1,0.00016621,3]
[373316407,1752943838467,-768.34,0.00016621,3]
[373316410,1752943838477,-500.0,0.00016628,2]
[373316412,1752943838486,-500.0,0.00016628,2]
[373316414,1752943838496,-224.11439662,0.00016628,2]
[373316417,1752943838506,-500.0,0.00016628,2]
[373316419,1752943838516,-361.50304984,0.00016628,2]
[373316421,1752943838526,-223.09918125,0.00016628,2]
[373316423,1752943838535,-500.0,0.00016628,2]
[373316425,1752943838545,-2273.14535301,0.00016628,2]
[373316427,1752943838555,-2273.14535301,0.00016628,2]
[373316429,1752943838565,-500.0,0.00016628,2]
[373316431,1752943838574,-500.0,0.00016628,2]
[373316433,1752943838584,-154.62592488,0.00016628,2]
[373316435,1752943838593,-2273.14535301,0.00016628,2]
[373316437,1752943838603,-288.19334537,0.00016628,2]
[373316439,1752943838613,-2273.14535301,0.00016628,2]
[373316441,1752943838622,-551.75622423,0.00016628,2]
[373316443,1752943838632,-642.41106521,0.00016628,2]
[373316445,1752943838642,-2273.14535301,0.00016628,2]
[373316447,1752943838651,-2273.14535301,0.00016628,2]
[373316449,1752943838661,-2273.14535301,0.00016628,2]
[373316451,1752943838669,-2273.14535301,0.00016628,2]
[373316453,1752943838681,-2273.14535301,0.00016628,2]
[373316455,1752943838690,-2273.14535301,0.00016628,2]
[373316457,1752943838700,-2273.14535301,0.00016628,2]
[373316459,1752943838710,-2273.14535301,0.00016628,2]
[373316461,1752943838721,-2273.14535301,0.00016628,2]
[373316463,1752943838731,-2273.14535301,0.00016628,2]
[373316465,1752943838740,-2273.14535301,0.00016628,2]
[373316467,1752943838750,-2273.14535301,0.00016628,2]
[373316469,1752943838759,-2273.14535301,0.00016628,2]
[373316471,1752943838769,-2273.14535301,0.00016628,2]
[373316473,1752943838779,-2273.14535301,0.00016628,2]
[373316474,1752943838788,-2273.14535301,0.00016628,2]
[373316476,1752943838798,-2273.14535301,0.00016628,2]
[373316478,1752943838808,-2273.14535301,0.00016628,2]
[373316481,1752943838818,-2273.14535301,0.00016628,2]
[373316483,1752943838829,-2273.14535301,0.00016628,2]
[373316485,1752943838839,-2273.14535301,0.00016628,2]
[373316487,1752943838848,-2273.14535301,0.00016628,2]
[373316489,1752943838857,-2273.14535301,0.00016628,2]
[373316491,1752943838867,-2273.14535301,0.00016628,2]
[373316493,1752943838877,-2273.14535301,0.00016628,2]
[373316495,1752943838887,-2273.14535301,0.00016628,2]
[373316497,1752943838896,-2273.14535301,0.00016628,2]
[373316499,1752943838906,-2273.14535301,0.00016628,2]
[373316501,1752943838916,-2273.14535301,0.00016628,2]
[373316503,1752943838925,-2273.14535301,0.00016628,2]
[373316505,1752943838935,-2273.14535301,0.00016628,2]
[373316507,1752943838945,-2273.14535301,0.00016628,2]
[373316509,1752943838955,-2273.14535301,0.00016628,2]
[373316511,1752943838965,-2273.14535301,0.00016628,2]
[373316513,1752943838974,-2273.14535301,0.00016628,2]
[373316515,1752943838983,-2273.14535301,0.00016628,2]
[373316517,1752943838992,-2273.14535301,0.00016628,2]
[373316519,1752943839002,-2273.14535301,0.00016628,2]
[373316521,1752943839011,-2273.14535301,0.00016628,2]
[373316523,1752943839021,-2273.14535301,0.00016628,2]
[373316525,1752943839031,-2273.14535301,0.00016628,2]
[373316527,1752943839041,-2273.14535301,0.00016628,2]
[373316529,1752943839050,-2273.14535301,0.00016628,2]
[373316531,1752943839059,-2273.14535301,0.00016628,2]
[373316532,1752943839068,-2273.14535301,0.00016628,2]
[373316535,1752943839081,-2273.14535301,0.00016628,2]
[373316537,1752943839091,-2273.14535301,0.00016628,2]
[373316539,1752943839101,-2273.14535301,0.00016628,2]
[373316541,1752943839111,-2273.14535301,0.00016628,2]
[373316543,1752943839122,-2273.14535301,0.00016628,2]
[373316545,1752943839132,-2273.14535301,0.00016628,2]
[373316547,1752943839142,-2273.14535301,0.00016628,2]
[373316549,1752943839151,-2273.14535301,0.00016628,2]
[373316551,1752943839160,-2273.14535301,0.00016628,2]
[373316553,1752943839170,-2273.14535301,0.00016628,2]
[373316555,1752943839180,-2273.14535301,0.00016628,2]
[373316557,1752943839189,-2273.14535301,0.00016628,2]
[373316559,1752943839199,-2273.14535301,0.00016628,2]
[373316561,1752943839208,-2273.14535301,0.00016628,2]
[373316563,1752943839218,-2273.14535301,0.00016628,2]
[373316565,1752943839228,-2273.14535301,0.00016628,2]
[373316567,1752943839237,-2273.14535301,0.00016628,2]
[373316569,1752943839247,-475.0,0.00016629,2]
[373316571,1752943839256,-460.0,0.00016629,2]
[373316573,1752943839266,-1199.35,0.00016629,2]
[373316575,1752943839275,-460.0,0.0001663,2]
[373316577,1752943839284,-460.0,0.0001663,2]
[373316579,1752943839294,-618.24,0.0001663,2]
[373316581,1752943839303,-460.0,0.00016631,2]
[373316583,1752943839312,-460.0,0.00016631,2]
[373316585,1752943839323,-460.0,0.00016631,2]
[373316587,1752943839332,-460.0,0.00016631,2]
[373316589,1752943839342,-460.0,0.00016631,2]
[373316591,1752943839351,-460.0,0.00016631,2]
[373316593,1752943839361,-460.0,0.00016631,2]
[373316595,1752943839370,-460.0,0.00016631,2]
[373316597,1752943839380,-460.0,0.00016631,2]
[373316599,1752943839389,-460.0,0.00016631,2]
[373316601,1752943839399,-460.0,0.00016631,2]
[373316603,1752943839408,-460.0,0.00016631,2]